bitfinex/quotes_BTCUSD_20240905
["timestamp","ask_amount","ask_price","bid_price","bid_amount"]
[1725528391872,0.93438261,56878.0,56877.0,4.11196782]
[1725528392085,0.93438261,56878.0,56877.0,3.89133282]
[1725528392290,0.92666044,56878.0,56877.0,3.78333282]
[1725528392492,0.92666044,56878.0,56877.0,4.13496782]
[1725528393150,0.92666044,56878.0,56877.0,4.14496782]
[1725528393783,0.64618711,56878.0,56877.0,4.14496782]
[1725528394236,0.64618711,56878.0,56877.0,9.19496782]
[1725528394450,0.64618711,56878.0,56877.0,9.15196782]
[1725528395511,0.64618711,56878.0,56877.0,9.52926782]
[1725528396405,0.64618711,56878.0,56877.0,10.92107624]
[1725528396638,0.64618711,56878.0,56877.0,10.57144124]
[1725528397076,0.64618711,56878.0,56877.0,10.94307624]
[1725528400367,0.64618711,56878.0,56877.0,5.93607624]
[1725528400580,0.64618711,56878.0,56877.0,5.20714124]
[1725528400724,0.64618711,56878.0,56877.0,7.21414124]
[1725528401736,0.64618711,56878.0,56877.0,7.56577624]
[1725528401941,0.64618711,56878.0,56877.0,7.15588063]
[1725528403198,0.64618711,56878.0,56877.0,7.23179482]
[1725528404157,0.64618711,56878.0,56877.0,7.32964981]
[1725528404388,0.64618711,56878.0,56877.0,6.89014981]
[1725528405124,0.47037211,56878.0,56877.0,6.89014981]
[1725528405373,0.47037211,56878.0,56877.0,7.18899482]
[1725528405612,0.47037211,56878.0,56877.0,7.28690474]
[1725528407351,0.47037211,56878.0,56877.0,7.69680035]
[1725528407520,0.40004611,56878.0,56877.0,7.69680035]
[1725528408186,0.32972011,56878.0,56877.0,7.69680035]
[1725528408531,0.22423111,56878.0,56877.0,7.59888433]
[1725528408736,0.15390511,56878.0,56877.0,7.83187339]
[1725528408979,0.04841811,56878.0,56877.0,7.9501465]
[1725528409397,0.04841811,56878.0,56877.0,8.3896465]
[1725528409605,0.04841811,56878.0,56877.0,8.62300839]
[1725528409606,0.02286384,56878.0,56877.0,8.62300839]
[1725528409814,1.95309847,56880.0,56879.0,1.64601985]
[1725528410040,1.95309847,56880.0,56879.0,7.28043126]
[1725528410246,1.95309847,56880.0,56879.0,7.4113645]
[1725528410450,1.95309847,56880.0,56879.0,7.7629875]
[1725528410655,1.95309847,56880.0,56879.0,8.1158279]
[1725528410857,1.91793647,56880.0,56879.0,8.1158279]
[1725528411072,1.88277447,56880.0,56879.0,8.1158279]
[1725528411277,1.81245047,56880.0,56879.0,8.1278279]
[1725528411491,1.77728847,56880.0,56879.0,8.1278279]
[1725528411704,1.74212647,56880.0,56879.0,7.7762049]
[1725528411911,1.67180247,56880.0,56879.0,7.7762049]
[1725528412173,1.63664047,56880.0,56879.0,7.7892049]
[1725528412396,1.63664047,56880.0,56879.0,7.71329681]
[1725528412623,1.63664047,56880.0,56879.0,7.78919805]
[1725528412848,1.63664047,56880.0,56879.0,7.71946833]
[1725528413273,1.63664047,56880.0,56879.0,7.70726833]
[1725528413944,1.63664047,56880.0,56879.0,3.19102233]
[1725528414166,2.22754047,56880.0,56879.0,2.55182548]
[1725528414432,2.22754047,56880.0,56879.0,2.71985542]
[1725528414649,2.22754047,56880.0,56879.0,2.55182548]
[1725528414650,2.22835547,56880.0,56879.0,2.55182548]
[1725528415585,2.22835547,56880.0,56879.0,2.53532521]
[1725528415809,2.22835547,56880.0,56879.0,2.55182968]
[1725528416206,2.22835547,56880.0,56879.0,2.57482968]
[1725528418671,2.22835547,56880.0,56879.0,2.57482925]
[1725528419044,2.22835547,56880.0,56879.0,4.90389828]
[1725528419242,2.22835547,56880.0,56879.0,4.93030475]
[1725528419684,2.22835547,56880.0,56879.0,5.08835141]
[1725528419883,2.22835547,56880.0,56879.0,4.96331284]
[1725528420152,2.22835547,56880.0,56879.0,4.96531284]
[1725528421187,1.63745547,56880.0,56879.0,5.34693584]
[1725528421428,1.63745547,56880.0,56879.0,4.84404023]
[1725528421888,1.63745547,56880.0,56879.0,5.07740954]
[1725528422100,1.63745547,56880.0,56879.0,4.84404023]
[1725528422319,1.63745547,56880.0,56879.0,4.94196781]
[1725528422662,1.63745547,56880.0,56879.0,10.69716781]
[1725528422889,1.63745547,56880.0,56879.0,9.21749439]
[1725528423106,1.62745598,56880.0,56879.0,9.12948228]
[1725528423360,1.55713198,56880.0,56879.0,9.16741175]
[1725528423561,1.55713198,56880.0,56879.0,9.12948228]
[1725528424000,1.55713198,56880.0,56879.0,9.11648228]
[1725528424643,1.55713198,56880.0,56879.0,9.10433978]
[1725528425519,1.55713198,56880.0,56879.0,9.11733978]
[1725528425724,1.55713198,56880.0,56879.0,9.12933978]
[1725528425935,1.55713198,56880.0,56879.0,9.11633978]
[1725528426133,1.55713198,56880.0,56879.0,9.11719674]
[1725528426619,1.55713198,56880.0,56879.0,9.11882674]
[1725528427100,1.55713198,56880.0,56879.0,9.13082674]
[1725528427363,1.52196998,56880.0,56879.0,9.13082674]
[1725528427636,1.38132198,56880.0,56879.0,9.05490814]
[1725528427887,1.27583598,56880.0,56879.0,9.09781043]
[1725528428130,1.20551198,56880.0,56879.0,9.44943343]
[1725528428373,1.20551198,56880.0,56879.0,9.1178122]
[1725528428811,1.10002598,56880.0,56879.0,9.1188122]
[1725528429045,1.06486398,56880.0,56879.0,9.1188122]
[1725528429271,1.02970198,56880.0,56879.0,9.1308122]
[1725528430482,0.85389198,56880.0,56879.0,12.69956501]
[1725528430721,0.85389198,56880.0,56879.0,12.9328286]
[1725528430943,0.85389198,56880.0,56879.0,12.85692454]
[1725528431183,0.85389198,56880.0,56879.0,12.93282592]
[1725528431412,0.81872998,56880.0,56879.0,12.83489834]
[1725528431662,0.67808198,56880.0,56879.0,12.69967554]
[1725528431903,0.57259598,56880.0,56879.0,12.69967554]
[1725528432138,0.50227198,56880.0,56879.0,12.69967554]
[1725528433092,0.46710998,56880.0,56879.0,12.69967554]
[1725528433297,0.32646198,56880.0,56879.0,7.64967554]
[1725528433523,0.32646198,56880.0,56879.0,12.69967554]
[1725528434135,0.28129683,56880.0,56879.0,12.69967554]
[1725528434377,0.24113483,56880.0,56879.0,12.69967554]
[1725528434599,0.23213483,56880.0,56879.0,12.62377416]
[1725528434804,0.23213483,56880.0,56879.0,12.66667469]
[1725528435002,0.23213483,56880.0,56879.0,12.62377416]
[1725528435786,0.17569097,56880.0,56879.0,12.62377416]
[1725528436411,0.07020497,56880.0,56879.0,12.6996751]
[1725528436867,0.07020497,56880.0,56879.0,12.62377416]
[1725528437954,0.03504297,56880.0,56879.0,12.97539716]
[1725528438186,9.7e-07,56880.0,56879.0,12.62377416]
[1725528438398,9.7e-07,56880.0,56879.0,7.6496751]
[1725528439210,0.90895697,56882.0,56881.0,1.6455452]
[1725528439429,0.87379597,56882.0,56881.0,8.12259816]
[1725528439655,0.87379597,56882.0,56881.0,8.198499]
[1725528439909,0.83863497,56882.0,56881.0,8.5513274]
[1725528440340,1.02463497,56882.0,56881.0,8.1997164]
[1725528440584,1.02463497,56882.0,56881.0,8.2117164]
[1725528441623,1.02463497,56882.0,56881.0,8.2247164]
[1725528442609,1.02463497,56882.0,56881.0,2.43886211]
[1725528442836,1.02463497,56882.0,56881.0,2.40586174]
[1725528443055,1.02463497,56882.0,56881.0,2.5375091]
[1725528443282,1.41943497,56882.0,56881.0,2.37946145]
[1725528443491,1.41943497,56882.0,56881.0,2.5375091]
[1725528443698,1.41943497,56882.0,56881.0,2.54666442]
[1725528443907,1.41943497,56882.0,56881.0,2.64666442]
[1725528444115,1.41943497,56882.0,56881.0,2.6696626]
[1725528444322,1.41943497,56882.0,56881.0,2.92890589]
[1725528444554,1.41943497,56882.0,56881.0,2.06780718]
[1725528445246,1.41943497,56882.0,56881.0,1.88976135]
[1725528445445,1.41943497,56882.0,56881.0,1.29890706]
[1725528446556,1.41943497,56882.0,56881.0,1.45694497]
[1725528446933,1.41943497,56882.0,56881.0,1.29890706]
[1725528447718,1.41943497,56882.0,56881.0,1.54815035]
[1725528447937,1.41943497,56882.0,56881.0,1.89976135]
[1725528448137,1.41943497,56882.0,56881.0,1.90976135]
[1725528448356,1.41943497,56882.0,56881.0,1.89320612]
[1725528448558,1.41943497,56882.0,56881.0,1.64196283]
[1725528448758,1.41943497,56882.0,56881.0,1.6454661]
[1725528448967,1.41943497,56882.0,56881.0,1.2858551]
[1725528449163,1.41943497,56882.0,56881.0,1.32526033]
[1725528449484,1.41943497,56882.0,56881.0,1.2988551]
[1725528449682,1.42024997,56882.0,56881.0,1.32526033]
[1725528450885,1.42024997,56882.0,56881.0,1.67687133]
[1725528451760,1.42024997,56882.0,56881.0,1.6504661]
[1725528451982,1.02544997,56882.0,56881.0,2.26772562]
[1725528452191,1.02544997,56882.0,56881.0,2.39573213]
[1725528452400,1.02544997,56882.0,56881.0,7.38073216]
[1725528452611,1.02544997,56882.0,56881.0,7.47873864]
[1725528454575,0.83944997,56882.0,56881.0,7.83234964]
[1725528454780,0.83944997,56882.0,56881.0,7.4048236]
[1725528455202,0.83944997,56882.0,56881.0,7.4543249]
[1725528455406,0.83944997,56882.0,56881.0,7.48072559]
[1725528456035,0.83944997,56882.0,56881.0,7.83233659]
[1725528456209,0.83944997,56882.0,56881.0,7.48072559]
[1725528456795,0.56810931,56882.0,56881.0,7.96761088]
[1725528457156,0.56810931,56882.0,56881.0,7.61599988]
[1725528457558,0.56810931,56882.0,56881.0,7.38271911]
[1725528458204,0.56810931,56882.0,56881.0,7.61600122]
[1725528459315,0.56810931,56882.0,56881.0,7.61600696]
[1725528459946,0.76580931,56882.0,56881.0,5.14472045]
[1725528461157,0.76580931,56882.0,56881.0,5.37800696]
[1725528462629,1.17760931,56882.0,56881.0,3.53700696]
[1725528462848,1.17760931,56882.0,56881.0,2.00547571]
[1725528463054,1.17760931,56882.0,56881.0,2.01547571]
[1725528463694,1.17760931,56882.0,56881.0,2.254719]
[1725528464325,1.17760931,56882.0,56881.0,2.277719]
[1725528465790,1.17760931,56882.0,56881.0,2.23481712]
[1725528466021,1.17760931,56882.0,56881.0,2.27972284]
[1725528467973,1.17760931,56882.0,56881.0,7.42770563]
[1725528468218,1.17760931,56882.0,56881.0,7.4882137]
[1725528470759,1.17760931,56882.0,56881.0,7.2742137]
[1725528470963,1.17760931,56882.0,56881.0,6.6162137]
[1725528471165,1.17760931,56882.0,56881.0,5.6162137]
[1725528471992,1.17760931,56882.0,56881.0,5.47277991]
[1725528472415,0.76580931,56882.0,56881.0,2.29477991]
[1725528472650,0.76580931,56882.0,56881.0,2.26177551]
[1725528472898,0.76580931,56882.0,56881.0,7.31177551]
[1725528473318,0.76580931,56882.0,56881.0,7.34477991]
[1725528473540,0.76580931,56882.0,56881.0,7.41681791]
[1725528475370,0.76580931,56882.0,56881.0,7.38931424]
[1725528476068,0.46262631,56882.0,56881.0,7.76092524]
[1725528476328,0.39230431,56882.0,56881.0,7.66294245]
[1725528476557,0.39230431,56882.0,56881.0,7.7608651]
[1725528476793,2.2287,56884.0,56881.0,7.7608651]
[1725528476794,2.2287,56884.0,56883.0,2.04253015]
[1725528477002,2.2287,56884.0,56883.0,7.46214252]
[1725528477215,2.2287,56884.0,56883.0,7.46335992]
[1725528477436,2.2287,56884.0,56883.0,7.49636101]
[1725528477437,1.57423975,56884.0,56883.0,7.49636101]
[1725528477656,1.57423975,56884.0,56883.0,8.17941383]
[1725528477929,1.24851475,56884.0,56883.0,8.20691182]
[1725528478162,0.76976696,56884.0,56883.0,8.9086956]
[1725528478414,0.54476696,56884.0,56883.0,8.65740291]
[1725528478640,1.53867498,56885.0,56884.0,2.77791862]
[1725528478874,1.25764704,56885.0,56884.0,8.2141951]
[1725528479121,0.98776141,56885.0,56884.0,8.34045295]
[1725528479337,0.77769141,56885.0,56884.0,8.34167035]
[1725528479550,0.38269389,56885.0,56884.0,8.34167035]
[1725528479767,1.68094642,56886.0,56885.0,3.59405015]
[1725528480030,1.32895507,56886.0,56885.0,9.95637873]
[1725528480259,1.32895507,56886.0,56885.0,9.97409054]
[1725528480707,1.22348107,56886.0,56885.0,10.67409054]
[1725528480914,1.15316507,56886.0,56885.0,10.67409054]
[1725528481348,1.15316507,56886.0,56885.0,10.69909054]
[1725528482256,0.95337507,56886.0,56885.0,11.41629054]
[1725528482474,1.69629603,56887.0,56886.0,2.79227504]
[1725528482729,1.63134606,56887.0,56886.0,10.07533654]
[1725528482976,1.49071806,56887.0,56886.0,10.21380412]
[1725528483233,1.49071806,56887.0,56886.0,11.04428541]
[1725528483489,1.47245506,56887.0,56886.0,11.04428541]
[1725528483722,1.43729806,56887.0,56886.0,5.99428541]
[1725528483977,1.2670096,56887.0,56886.0,11.93523541]
[1725528484235,0.56302888,56887.0,56886.0,12.1875281]
[1725528484500,1.13736393,56888.0,56887.0,2.75397215]
[1725528484750,1.10220693,56888.0,56887.0,10.56790356]
[1725528485004,0.95897893,56888.0,56887.0,10.59610356]
[1725528485253,0.95897893,56888.0,56887.0,10.59732096]
[1725528485720,0.92382193,56888.0,56887.0,10.59732096]
[1725528485961,1.654488,56889.0,56888.0,2.72032615]
[1725528486199,1.56279743,56889.0,56888.0,9.17386894]
[1725528486436,1.56279743,56889.0,56888.0,9.41854375]
[1725528486676,1.50008249,56889.0,56888.0,10.05278794]
[1725528486916,1.156,56890.0,56889.0,0.75756066]
[1725528486917,0.31384537,56890.0,56889.0,0.75756066]
[1725528487145,1.9726,56891.0,56890.0,0.85819681]
[1725528487146,0.19270487,56891.0,56890.0,0.85819681]
[1725528487389,1.2419,56892.0,56891.0,1.778872]
[1725528487602,1.2419,56892.0,56891.0,6.42842172]
[1725528487817,1.06613,56892.0,56891.0,6.45662172]
[1725528488038,1.06613,56892.0,56891.0,7.64179391]
[1725528488244,1.06613,56892.0,56891.0,7.79645555]
[1725528488454,1.06613,56892.0,56891.0,8.02364824]
[1725528488666,1.06613,56892.0,56891.0,7.77364824]
[1725528489355,1.06613,56892.0,56891.0,7.78564824]
[1725528489356,0.78479048,56892.0,56891.0,7.78564824]
[1725528489994,0.79479048,56892.0,56891.0,7.79864824]
[1725528490224,0.79179048,56892.0,56891.0,7.80515758]
[1725528490453,0.79179048,56892.0,56891.0,7.95945576]
[1725528491099,0.79179048,56892.0,56891.0,8.00318297]
[1725528491583,0.61602048,56892.0,56891.0,8.04098692]
[1725528491804,0.47540448,56892.0,56891.0,7.62648693]
[1725528492046,0.44025048,56892.0,56891.0,7.62648689]
[1725528492288,0.27923946,56892.0,56891.0,7.58850595]
[1725528492510,0.27923946,56892.0,56891.0,7.14395695]
[1725528493018,0.27923946,56892.0,56891.0,6.76940795]
[1725528493243,0.27923946,56892.0,56891.0,7.12095695]
[1725528493451,0.27923946,56892.0,56891.0,6.76940795]
[1725528494099,0.27923946,56892.0,56891.0,6.42095695]
[1725528494345,0.27923946,56892.0,56891.0,6.44395695]
[1725528494569,0.24408546,56892.0,56891.0,6.4817609]
[1725528494783,0.13862346,56892.0,56891.0,6.4817609]
[1725528494990,0.06831546,56892.0,56891.0,7.1817609]
[1725528495903,0.06831546,56892.0,56891.0,7.20925122]
[1725528496335,0.06831546,56892.0,56891.0,6.79240795]
[1725528496551,0.06831546,56892.0,56891.0,10.77366075]
[1725528496552,0.25801546,56892.0,56891.0,10.77366075]
[1725528496774,0.25801546,56892.0,56891.0,6.78160795]
[1725528497247,0.25801546,56892.0,56891.0,6.76880795]
[1725528497460,0.25801546,56892.0,56891.0,6.76860795]
[1725528497666,0.25883046,56892.0,56891.0,6.08160795]
[1725528497873,0.25883046,56892.0,56891.0,6.05660795]
[1725528498296,0.25883046,56892.0,56891.0,5.39572845]
[1725528499160,0.64813046,56892.0,56891.0,4.68188676]
[1725528499393,0.64813046,56892.0,56891.0,2.08733776]
[1725528499623,0.64813046,56892.0,56891.0,2.07084357]
[1725528499867,0.64813046,56892.0,56891.0,2.17572575]
[1725528500081,0.64813046,56892.0,56891.0,1.83717675]
[1725528500288,0.64813046,56892.0,56891.0,1.82417675]
[1725528500513,0.64813046,56892.0,56891.0,1.91217675]
[1725528500747,0.64813046,56892.0,56891.0,1.93717675]
[1725528500969,0.64813046,56892.0,56891.0,1.48562775]
[1725528501203,0.64813046,56892.0,56891.0,1.73229457]
[1725528501437,0.64813046,56892.0,56891.0,1.83717675]
[1725528501868,0.64813046,56892.0,56891.0,1.66817675]
[1725528502358,0.64813046,56892.0,56891.0,1.57529457]
[1725528502586,0.64813046,56892.0,56891.0,1.69179465]
[1725528502992,0.64813046,56892.0,56891.0,1.34024565]
[1725528503225,0.64813046,56892.0,56891.0,1.69179465]
[1725528503428,0.64813046,56892.0,56891.0,1.93108734]
[1725528503739,0.64813046,56892.0,56891.0,1.32724565]
[1725528503823,0.64813046,56892.0,56891.0,1.32824565]
[1725528504249,0.64813046,56892.0,56891.0,1.31524565]
[1725528504473,0.64813046,56892.0,56891.0,1.34124565]
[1725528504700,0.64813046,56892.0,56891.0,1.69279465]
[1725528504933,0.64813046,56892.0,56891.0,2.06320251]
[1725528505154,0.64813046,56892.0,56891.0,1.93208734]
[1725528505372,0.64813046,56892.0,56891.0,1.9562376]
[1725528505614,0.64813046,56892.0,56891.0,1.71694491]
[1725528505864,0.64813046,56892.0,56891.0,2.06849391]
[1725528506080,0.64813046,56892.0,56891.0,2.3077866]
[1725528506914,0.64813046,56892.0,56891.0,2.6593356]
[1725528507547,0.64813046,56892.0,56891.0,2.6471356]
[1725528508850,0.64813046,56892.0,56891.0,2.2955866]
[1725528509058,0.64813046,56892.0,56891.0,2.39134283]
[1725528509263,0.64813046,56892.0,56891.0,4.80784282]
[1725528510553,0.64813046,56892.0,56891.0,4.80947282]
[1725528512494,0.64813046,56892.0,56891.0,4.78532256]
[1725528513516,0.64813046,56892.0,56891.0,4.94266076]
[1725528515214,0.64813046,56892.0,56891.0,5.29420976]
[1725528515454,0.64813046,56892.0,56891.0,5.15987156]
[1725528515889,0.64813046,56892.0,56891.0,5.51142056]
[1725528516793,0.64813046,56892.0,56891.0,5.73174025]
[1725528517009,0.64813046,56892.0,56891.0,5.71774025]
[1725528517242,0.64813046,56892.0,56891.0,5.74274025]
[1725528517679,0.64513046,56892.0,56891.0,5.51042056]
[1725528517890,0.06613046,56892.0,56891.0,5.77720832]
[1725528518099,1.3631,56894.0,56891.0,5.77720832]
[1725528518100,1.3631,56894.0,56893.0,1.933453]
[1725528518308,1.3631,56894.0,56893.0,2.67343962]
[1725528518309,0.48403196,56894.0,56893.0,2.67343962]
[1725528518524,0.48403196,56894.0,56893.0,4.91717404]
[1725528519184,0.48403196,56894.0,56893.0,4.67788135]
[1725528519400,0.48403196,56894.0,56893.0,4.68888135]
[1725528519887,0.48403196,56894.0,56893.0,4.68887691]
[1725528520516,0.48403196,56894.0,56893.0,4.70187691]
[1725528523219,0.48484696,56894.0,56893.0,4.70187691]
[1725528523418,0.48484696,56894.0,56893.0,4.68538136]
[1725528523822,0.48484696,56894.0,56893.0,4.70187702]
[1725528524433,0.17719822,56894.0,56893.0,4.70187702]
[1725528524633,0.78079822,56894.0,56893.0,4.35034002]
[1725528525038,0.78079822,56894.0,56893.0,4.32734002]
[1725528525240,0.78079822,56894.0,56893.0,3.97580302]
[1725528525447,0.78079822,56894.0,56893.0,0.24542402]
[1725528525646,0.78079822,56894.0,56893.0,0.42119202]
[1725528525924,0.78079822,56894.0,56893.0,0.90410248]
[1725528526366,0.78079822,56894.0,56893.0,0.89310248]
[1725528526574,0.78079822,56894.0,56893.0,0.89110248]
[1725528527000,0.78079822,56894.0,56893.0,1.00410248]
[1725528527607,0.78079822,56894.0,56893.0,0.87272902]
[1725528527818,0.78079822,56894.0,56893.0,0.99310248]
[1725528528255,0.78079822,56894.0,56893.0,0.87372902]
[1725528529728,0.78079822,56894.0,56893.0,1.22526602]
[1725528529971,0.78079822,56894.0,56893.0,3.97680302]
[1725528530611,0.78079822,56894.0,56893.0,3.96030736]
[1725528531050,0.55718491,56894.0,56893.0,3.97680583]
[1725528532852,0.55718491,56894.0,56893.0,4.32834283]
[1725528533075,0.4045,56894.0,56893.0,4.35134283]
[1725528533740,0.39500487,56894.0,56893.0,4.33834283]
[1725528533954,0.39500487,56894.0,56893.0,4.35234283]
[1725528534171,0.39500487,56894.0,56893.0,4.34034283]
[1725528534382,0.39500487,56894.0,56893.0,4.35234283]
[1725528534607,0.39500487,56894.0,56893.0,4.35397283]
[1725528534805,0.39581987,56894.0,56893.0,4.35397283]
[1725528537856,0.39581987,56894.0,56893.0,4.35397109]
[1725528538834,0.39581987,56894.0,56893.0,4.38036586]
[1725528539550,0.39581987,56894.0,56893.0,4.33747436]
[1725528539811,0.39581987,56894.0,56893.0,3.98593736]
[1725528540511,0.39581987,56894.0,56893.0,3.96293736]
[1725528541623,0.39581987,56894.0,56893.0,4.66783736]
[1725528542053,0.39581987,56894.0,56893.0,4.74372794]
[1725528543982,0.58211987,56894.0,56893.0,4.7437297]
[1725528547179,0.58211987,56894.0,56893.0,4.74373227]
[1725528548028,0.58211987,56894.0,56893.0,4.97699527]
[1725528550019,0.57781987,56894.0,56893.0,5.32853227]
[1725528550237,0.57781987,56894.0,56893.0,5.39892127]
[1725528550442,0.57781987,56894.0,56893.0,5.32302636]
[1725528550655,0.57781987,56894.0,56893.0,5.39891874]
[1725528551070,0.57781987,56894.0,56893.0,5.16565574]
[1725528551499,0.57781987,56894.0,56893.0,4.81411874]
[1725528551709,0.57781987,56894.0,56893.0,5.04738174]
[1725528554509,0.57781987,56894.0,56893.0,4.81411874]
[1725528555409,0.57781987,56894.0,56893.0,5.04747822]
[1725528555815,0.57781987,56894.0,56893.0,4.81411874]
[1725528556031,0.57781987,56894.0,56893.0,4.83875424]
[1725528556469,0.57781987,56894.0,56893.0,4.78925891]
[1725528556681,0.57781987,56894.0,56893.0,4.81411789]
[1725528557347,0.57781987,56894.0,56893.0,4.75472451]
[1725528557569,0.57781987,56894.0,56893.0,4.81411787]
[1725528559512,0.57781987,56894.0,56893.0,5.26401101]
[1725528559715,0.57781987,56894.0,56893.0,5.28701101]
[1725528559940,0.57781987,56894.0,56893.0,4.93547401]
[1725528560563,0.57781987,56894.0,56893.0,2.8965825]
[1725528560769,0.57781987,56894.0,56893.0,2.84112172]
[1725528560984,0.57781987,56894.0,56893.0,2.93948114]
[1725528561458,0.57781987,56894.0,56893.0,2.13640714]
[1725528561691,0.57781987,56894.0,56893.0,1.15612172]
[1725528561926,0.57781987,56894.0,56893.0,0.98035372]
[1725528562186,0.57781987,56894.0,56893.0,1.27131085]
[1725528562865,0.57781987,56894.0,56893.0,1.25731085]
[1725528563093,0.57781987,56894.0,56893.0,1.31421255]
[1725528563512,0.57781987,56894.0,56893.0,1.38821255]
[1725528563728,0.57781987,56894.0,56893.0,1.41421255]
[1725528564141,0.57781987,56894.0,56893.0,1.25612806]
[1725528564142,0.31625602,56894.0,56893.0,1.25612806]
[1725528564350,0.31625602,56894.0,56893.0,0.86644805]
[1725528564351,0.31825602,56894.0,56893.0,0.86644805]
[1725528565046,0.31825602,56894.0,56893.0,0.8619474]
[1725528565270,0.31825602,56894.0,56893.0,0.87845151]
[1725528565473,0.31825602,56894.0,56893.0,0.8619474]
[1725528565890,0.31625602,56894.0,56893.0,0.94097432]
[1725528566106,0.31625602,56894.0,56893.0,0.94094212]
[1725528566349,0.31625602,56894.0,56893.0,0.8619474]
[1725528566556,0.31825602,56894.0,56893.0,0.8619474]
[1725528567012,0.31625602,56894.0,56893.0,0.8619474]
[1725528567392,0.31825602,56894.0,56893.0,0.8619474]
[1725528568870,0.31825602,56894.0,56893.0,0.94092222]
[1725528569054,0.31825602,56894.0,56893.0,0.8619474]
[1725528569401,0.31825602,56894.0,56893.0,0.94092222]
[1725528569810,0.31825602,56894.0,56893.0,0.8619474]
[1725528570309,0.31825602,56894.0,56893.0,0.94092222]
[1725528572309,0.31825602,56894.0,56893.0,0.8619474]
[1725528574299,0.31825602,56894.0,56893.0,0.94086368]
[1725528575495,0.31825602,56894.0,56893.0,0.94084959]
[1725528575714,0.31825602,56894.0,56893.0,0.8619474]
[1725528576850,0.31825602,56894.0,56893.0,0.94084959]
[1725528577116,0.31825602,56894.0,56893.0,0.8619474]
[1725528577350,0.31825602,56894.0,56893.0,0.94084959]
[1725528578437,0.31825602,56894.0,56893.0,0.8619474]
[1725528582466,0.08123856,56894.0,56893.0,0.91453163]
[1725528582709,0.08123856,56894.0,56893.0,0.91453379]
[1725528582955,0.08123856,56894.0,56893.0,1.15382648]
[1725528583203,0.07923856,56894.0,56893.0,1.10124009]
[1725528584117,0.07923856,56894.0,56893.0,1.98008209]
[1725528584349,0.08123856,56894.0,56893.0,1.62854509]
[1725528585503,0.46383856,56894.0,56893.0,1.62854509]
[1725528585725,0.46183856,56894.0,56893.0,1.62854509]
[1725528586162,0.46383856,56894.0,56893.0,1.62854509]
[1725528586678,0.46383856,56894.0,56893.0,1.27700809]
[1725528586866,0.46383856,56894.0,56893.0,1.0377154]
[1725528587084,0.46383856,56894.0,56893.0,0.94084109]
[1725528587291,0.46383856,56894.0,56893.0,0.91454672]
[1725528587496,0.46383856,56894.0,56893.0,0.96454672]
[1725528589456,0.46183856,56894.0,56893.0,0.9119474]
[1725528589679,0.46383856,56894.0,56893.0,0.9119474]
[1725528591935,0.46183856,56894.0,56893.0,0.9119474]
[1725528592176,0.46183856,56894.0,56893.0,0.99085252]
[1725528592409,0.46183856,56894.0,56893.0,1.01715423]
[1725528592860,0.46183856,56894.0,56893.0,1.0171547]
[1725528593556,0.46183856,56894.0,56893.0,0.9119474]
[1725528593795,0.46265356,56894.0,56893.0,1.0877154]
[1725528594961,0.46265356,56894.0,56893.0,1.19293555]
[1725528595197,0.46265356,56894.0,56893.0,1.0877154]
[1725528595732,0.46265356,56894.0,56893.0,1.4392524]
[1725528597951,0.46265356,56894.0,56893.0,1.54450467]
[1725528598192,0.46265356,56894.0,56893.0,1.4392524]
[1725528598678,0.46265356,56894.0,56893.0,1.92235474]
[1725528599185,0.000815,56894.0,56893.0,2.31783736]
[1725528599875,0.000815,56894.0,56893.0,1.95430036]
[1725528600119,0.200415,56894.0,56893.0,1.4272524]
[1725528600352,0.590715,56894.0,56893.0,1.4392524]
[1725528600841,0.590715,56894.0,56893.0,1.4132524]
[1725528601069,0.590715,56894.0,56893.0,1.4392524]
[1725528601312,0.590715,56894.0,56893.0,1.0877154]
[1725528601534,0.590715,56894.0,56893.0,1.4392524]
[1725528602495,0.590715,56894.0,56893.0,1.0877154]
[1725528603158,0.590715,56894.0,56893.0,1.4392524]
[1725528603453,0.588715,56894.0,56893.0,1.4392524]
[1725528605494,0.590715,56894.0,56893.0,1.0877154]
[1725528605708,0.590715,56894.0,56893.0,1.4392524]
[1725528606187,0.588715,56894.0,56893.0,1.4392524]
[1725528606638,0.588715,56894.0,56893.0,1.61476336]
[1725528606875,0.588715,56894.0,56893.0,5.27143736]
[1725528606876,0.000815,56894.0,56893.0,5.27143736]
[1725528607094,0.000815,56894.0,56893.0,5.30444071]
[1725528607315,0.000815,56894.0,56893.0,5.88947646]
[1725528607567,0.000815,56894.0,56893.0,5.65597141]
[1725528607821,0.000815,56894.0,56893.0,5.88947016]
[1725528608036,0.000815,56894.0,56893.0,5.56164541]
[1725528608684,0.000815,56894.0,56893.0,5.67968366]
[1725528608892,0.000815,56894.0,56893.0,5.64168366]
[1725528609327,0.000815,56894.0,56893.0,5.87518241]
[1725528609568,0.000815,56894.0,56893.0,5.64168366]
[1725528609797,0.000815,56894.0,56893.0,5.87518241]
[1725528610240,0.000815,56894.0,56893.0,5.64168366]
[1725528610447,0.000815,56894.0,56893.0,3.27968366]
[1725528610660,0.000815,56894.0,56893.0,5.64668661]
[1725528611169,0.000815,56894.0,56893.0,5.67968325]
[1725528612045,0.000815,56894.0,56893.0,5.32814625]
[1725528612439,0.000815,56894.0,56893.0,5.67968325]
[1725528613333,0.000815,56894.0,56893.0,5.32814625]
[1725528613557,0.000815,56894.0,56893.0,5.61511528]
[1725528613779,0.000815,56894.0,56893.0,2.5808423]
[1725528613996,0.000815,56894.0,56893.0,2.38727992]
[1725528614213,0.000815,56894.0,56893.0,2.2293053]
[1725528615671,0.000815,56894.0,56893.0,2.20559305]
[1725528616397,0.000815,56894.0,56893.0,2.55713005]
[1725528616612,0.000815,56894.0,56893.0,5.50263005]
[1725528616843,0.000815,56894.0,56893.0,5.53562972]
[1725528618179,0.000815,56894.0,56893.0,6.12645941]
[1725528618398,0.000815,56894.0,56893.0,5.88716672]
[1725528618907,0.000815,56894.0,56893.0,8.21473575]
[1725528619167,0.000815,56894.0,56893.0,7.46719875]
[1725528619389,0.000815,56894.0,56893.0,6.13069875]
[1725528619604,0.000815,56894.0,56893.0,3.89330314]
[1725528619818,0.000815,56894.0,56893.0,2.55713005]
[1725528620257,0.000815,56894.0,56893.0,2.71507228]
[1725528620484,0.000815,56894.0,56893.0,2.36353528]
[1725528620707,0.000815,56894.0,56893.0,1.67854509]
[1725528620708,0.199515,56894.0,56893.0,1.67854509]
[1725528621149,0.199515,56894.0,56893.0,0.9119474]
[1725528621150,0.601015,56894.0,56893.0,0.9119474]
[1725528621404,0.601015,56894.0,56893.0,0.8619474]
[1725528622066,0.601015,56894.0,56893.0,0.89359039]
[1725528622502,0.601015,56894.0,56893.0,0.94359039]
[1725528622687,0.601015,56894.0,56893.0,1.35865108]
[1725528622938,0.601015,56894.0,56893.0,1.18288308]
[1725528623417,0.601015,56894.0,56893.0,1.15124009]
[1725528623646,0.601015,56894.0,56893.0,1.282892]
[1725528623861,0.601015,56894.0,56893.0,1.15124009]
[1725528624306,0.599015,56894.0,56893.0,1.15124009]
[1725528624552,0.599015,56894.0,56893.0,1.32700809]